bitfinex-derivatives/quotes_BNBF0:USTF0_20250305
["timestamp","ask_amount","ask_price","bid_price","bid_amount"]
[1741163763734,0.29031572,599.72,599.17,0.29049253]
[1741163763939,0.29031572,599.72,599.13,1.22505674]
[1741163764140,0.29031572,599.72,599.14,0.29053052]
[1741163764340,2.61917111,599.71,599.13,1.22505674]
[1741163764539,2.95267119,599.7,599.13,1.22505674]
[1741163764737,2.95267675,599.69,599.13,1.22505674]
[1741163764933,7.14416926,599.68,599.13,1.22505674]
[1741163765134,8.34000747,599.67,599.14,0.29064482]
[1741163765334,6.81065806,599.66,599.14,0.29064482]
[1741163765534,7.14418595,599.65,599.13,1.22505674]
[1741163765739,7.14419151,599.64,599.13,1.22505674]
[1741163765940,7.14419707,599.63,598.44,1.22505674]
[1741163766240,6.81065806,599.62,598.45,0.29073744]
[1741163766534,6.81065806,599.61,598.45,0.29073744]
[1741163766740,0.33356126,599.59,598.45,0.29073744]
[1741163766937,8.00649071,599.58,598.45,0.29073744]
[1741163767142,0.33357795,599.56,598.45,0.29073744]
[1741163767343,5.2879119,599.55,598.45,0.29073744]
[1741163767648,0.33359464,599.53,598.45,0.29073744]
[1741163767840,6.81163729,599.52,598.45,0.29073744]
[1741163768044,6.81163729,599.51,598.45,0.29073744]
[1741163768240,7.14524863,599.5,598.45,0.29073744]
[1741163768445,2.95278801,599.49,598.45,0.29073744]
[1741163768642,2.61917111,599.48,598.45,0.29073744]
[1741163768853,0.3336169,599.49,598.37,0.29053386]
[1741163768854,2.61607593,599.47,598.38,0.29073744]
[1741163769041,2.61607593,599.46,598.39,0.29073744]
[1741163769243,2.61607593,599.45,598.38,0.29073744]
[1741163769443,2.61607593,599.44,598.38,0.29073744]
[1741163769641,1.19583265,599.46,598.38,0.29073744]
[1741163769840,2.95005349,599.45,598.38,0.29073744]
[1741163770146,2.86416538,599.44,598.38,0.29073744]
[1741163770341,1.19583265,599.44,598.39,0.29073744]
[1741163770541,1.19583265,599.44,598.4,0.29073744]
[1741163770739,1.19583265,599.44,598.41,0.29073744]
[1741163770942,1.19583265,599.44,598.42,0.29073744]
[1741163771146,0.33363916,599.45,598.43,0.29073744]
[1741163771345,0.33363916,599.45,598.44,0.29073744]
[1741163771645,0.33363916,599.45,598.45,0.29073744]
[1741163771847,0.33363916,599.45,598.46,0.29073744]
[1741163772047,0.33363916,599.45,598.47,0.29073744]
[1741163772248,0.33363916,599.45,598.48,0.29073744]
[1741163772441,0.33363916,599.45,598.49,0.29073744]
[1741163772641,0.33363916,599.45,598.5,0.29073744]
[1741163772842,0.33363916,599.45,598.51,0.29073744]
[1741163773044,0.33363916,599.45,598.52,0.29073744]
[1741163773243,0.33363916,599.45,598.53,0.29073744]
[1741163773441,0.33363916,599.45,598.54,0.29059101]
[1741163773753,0.33363916,599.45,598.37,0.29053386]
[1741163773947,0.33363916,599.45,598.38,0.62484256]
[1741163774251,0.33363916,599.45,598.39,0.62483698]
[1741163774446,0.33363916,599.45,598.4,0.62483139]
[1741163774650,0.33363916,599.45,598.41,0.62482581]
[1741163774844,0.33363916,599.45,598.42,0.2906068]
[1741163775248,0.33363916,599.45,598.43,0.2906068]
[1741163775550,0.33363916,599.45,598.44,0.2906068]
[1741163775854,0.33363916,599.45,598.45,0.2906068]
[1741163776050,0.33363916,599.45,598.42,0.2906068]
[1741163776252,0.33363916,599.45,598.43,0.2906068]
[1741163776450,0.33363916,599.45,598.42,0.2906068]
[1741163776750,0.33363916,599.45,598.43,0.2906068]
[1741163776951,0.33363916,599.45,598.42,0.2906068]
[1741163777143,0.33363916,599.45,598.43,0.2906068]
[1741163777345,0.33363916,599.45,598.42,0.2906068]
[1741163777548,0.33363916,599.45,598.43,0.2906068]
[1741163777747,0.33363916,599.45,598.42,0.2906068]
[1741163777947,0.33363916,599.45,598.43,0.2906068]
[1741163778152,0.33363916,599.45,598.42,0.2906068]
[1741163778346,0.33363916,599.45,598.43,0.2906068]
[1741163778551,0.33363916,599.45,598.44,0.2906068]
[1741163778750,0.33363916,599.45,598.41,0.33421901]
[1741163778751,0.33363916,599.45,598.45,0.2906068]
[1741163779059,0.29049141,599.44,598.46,0.2906068]
[1741163779253,0.3336503,599.43,598.47,0.2906068]
[1741163779559,0.3336503,599.43,598.48,0.2906068]
[1741163779751,0.3336503,599.43,598.49,0.2906068]
[1741163779950,0.3336503,599.43,598.5,0.2906068]
[1741163780251,0.3336503,599.43,598.51,0.29068124]
[1741163780452,0.3336503,599.43,598.42,0.29068124]
[1741163780652,0.3336503,599.43,598.43,0.29068124]
[1741163780847,0.3336503,599.43,598.44,0.29068124]
[1741163781053,0.3336503,599.43,598.45,0.29068124]
[1741163781251,0.3336503,599.43,598.42,0.29068124]
[1741163781451,0.3336503,599.43,598.43,0.29068124]
[1741163781651,0.3336503,599.43,598.44,0.29068124]
[1741163781847,0.3336503,599.43,598.42,0.29068124]
[1741163782053,0.3336503,599.43,598.45,0.29068124]
[1741163782248,0.3336503,599.43,598.46,0.29068124]
[1741163782451,0.3336503,599.43,598.42,0.29068124]
[1741163782652,0.3336503,599.43,598.41,0.62471042]
[1741163782653,0.3336503,599.43,598.43,0.29068124]
[1741163782851,0.3336503,599.43,598.44,0.29068124]
[1741163783052,0.3336503,599.43,598.42,0.29068124]
[1741163783251,0.3336503,599.43,598.43,0.29068124]
[1741163783455,0.3336503,599.43,598.44,0.29068124]
[1741163783650,0.3336503,599.43,598.42,0.29068124]
[1741163783847,0.3336503,599.43,598.43,0.29068124]
[1741163784047,0.3336503,599.43,598.44,0.29068124]
[1741163784251,0.3336503,599.43,598.45,0.29068124]
[1741163784454,0.3336503,599.43,598.43,0.29068124]
[1741163784665,0.3336503,599.43,598.44,0.29068124]
[1741163784954,0.2905096,599.42,598.45,0.29068124]
[1741163785254,0.2905096,599.42,598.46,0.29068124]
[1741163785454,0.2905096,599.42,598.47,0.29068124]
[1741163785655,0.2905096,599.42,598.48,0.29081698]
[1741163785857,0.2905096,599.42,598.49,0.29081698]
[1741163786253,0.2905096,599.42,598.5,0.29081698]
[1741163786454,0.2905096,599.42,598.42,0.29081698]
[1741163786651,0.3336503,599.43,598.43,0.29081698]
[1741163786851,0.29060907,599.41,598.34,0.29081698]
[1741163787055,0.333667,599.4,598.35,0.29081698]
[1741163787255,0.333667,599.4,598.36,0.29081698]
[1741163787455,0.333667,599.4,598.34,0.29081698]
[1741163787656,0.333667,599.4,598.35,0.29081698]
[1741163787857,0.333667,599.4,598.34,0.29081698]
[1741163788157,0.333667,599.4,598.35,0.29081698]
[1741163788358,0.333667,599.4,598.36,0.29081698]
[1741163788551,0.333667,599.4,598.37,0.29081698]
[1741163788859,0.333667,599.4,598.38,0.29072278]
[1741163789160,0.333667,599.4,598.33,0.29056903]
[1741163789352,0.333667,599.4,598.34,0.29072895]
[1741163789552,0.333667,599.4,598.35,0.29072895]
[1741163789752,0.333667,599.4,598.36,0.29072895]
[1741163789954,0.2905848,599.39,598.37,0.29072895]
[1741163790255,0.33367813,599.38,598.38,0.29072895]
[1741163790463,0.33367813,599.38,598.39,0.29072895]
[1741163790660,0.33367813,599.38,598.4,0.29072895]
[1741163790860,0.33367813,599.38,598.41,0.29072895]
[1741163791161,0.33367813,599.38,598.42,0.29072895]
[1741163791363,0.33367813,599.38,598.43,0.29072895]
[1741163791565,0.33367813,599.38,598.44,0.29072895]
[1741163791864,0.33367813,599.38,598.45,0.29072895]
[1741163792057,0.33367813,599.38,598.34,0.29072895]
[1741163792271,0.33367813,599.38,598.35,0.29072895]
[1741163792475,0.33367813,599.38,598.36,0.29072895]
[1741163792773,0.33367813,599.38,598.37,0.29072895]
[1741163792972,0.33367813,599.38,598.38,0.29072895]
[1741163793167,0.33367813,599.38,598.39,0.29072895]
[1741163793468,0.33367813,599.38,598.4,0.29072895]
[1741163793672,0.33367813,599.38,598.34,0.2905666]
[1741163793673,0.33367813,599.38,598.41,0.29072895]
[1741163793866,0.29057631,599.37,598.35,0.29072895]
[1741163794177,0.33368926,599.36,598.36,0.29072895]
[1741163794368,0.33368926,599.36,598.37,0.29072895]
[1741163794576,0.33368926,599.36,598.38,0.29072895]
[1741163794769,0.33368926,599.36,598.39,0.29072895]
[1741163794968,0.33368926,599.36,598.4,0.29072895]
[1741163795269,0.33368926,599.36,598.41,0.29072895]
[1741163795568,0.33368926,599.36,598.42,0.29072895]
[1741163795771,0.33368926,599.36,598.43,0.29072895]
[1741163796166,0.33368926,599.36,598.44,0.29072895]
[1741163796370,0.33368926,599.36,598.45,0.29072895]
[1741163796567,0.33368926,599.36,598.46,0.29072895]
[1741163796771,0.33368926,599.36,598.47,0.29072895]
[1741163796971,0.33368926,599.36,598.48,0.29072895]
[1741163797166,0.33368926,599.36,598.49,0.29072895]
[1741163797369,0.33368926,599.36,598.5,0.29072895]
[1741163797570,0.29056054,599.35,598.35,0.29056054]
[1741163797767,0.29056054,599.35,598.36,0.29072895]
[1741163797967,0.29056054,599.35,598.35,0.29056054]
[1741163797968,0.29056054,599.35,598.37,0.29072895]
[1741163798167,0.29056054,599.35,598.38,0.29072895]
[1741163798371,0.29056054,599.35,598.39,0.29072895]
[1741163798567,0.29056054,599.35,598.4,0.29072895]
[1741163798767,0.3337004,599.34,598.41,0.29072895]
[1741163798974,0.3337004,599.34,598.42,0.29072895]
[1741163799175,0.3337004,599.34,598.36,0.29072895]
[1741163799375,0.3337004,599.34,598.35,0.29056054]
[1741163799576,0.3337004,599.34,598.36,0.29075576]
[1741163799869,0.3337004,599.34,598.37,0.29075576]
[1741163800069,0.3337004,599.34,598.36,0.29075576]
[1741163800269,0.3337004,599.34,598.37,0.29075576]
[1741163800467,0.3337004,599.34,598.38,0.29075576]
[1741163800774,0.3337004,599.34,598.39,0.29075576]
[1741163800971,0.3337004,599.34,598.4,0.29075576]
[1741163801172,0.3337004,599.34,598.36,0.29075576]
[1741163801369,0.3337004,599.34,598.37,0.29075576]
[1741163801772,0.3337004,599.34,598.38,0.29075576]
[1741163801970,0.3337004,599.34,598.14,0.29075576]
[1741163802176,0.3337004,599.34,598.15,0.29075576]
[1741163802374,0.3337004,599.34,598.16,0.29075576]
[1741163802575,0.3337004,599.34,598.17,0.29075576]
[1741163802875,0.29056175,599.33,598.18,0.29075576]
[1741163803074,0.33371153,599.32,598.19,0.29075576]
[1741163803272,0.33371153,599.32,598.2,0.29075576]
[1741163803475,0.33371153,599.32,598.21,0.29075576]
[1741163803684,0.33371153,599.32,598.22,0.29075576]
[1741163803975,0.33371153,599.32,598.23,0.29075576]
[1741163804175,0.33371153,599.32,598.24,0.29075576]
[1741163804376,0.33371153,599.32,598.25,0.29075576]
[1741163804677,0.33371153,599.32,598.26,0.29075576]
[1741163804874,0.33371153,599.32,598.27,0.29075576]
[1741163805072,0.33371153,599.32,598.28,0.29075576]
[1741163805378,0.33371153,599.32,598.29,0.29075576]
[1741163805580,0.33371153,599.32,598.3,0.29075576]
[1741163805878,0.29056539,599.31,598.31,0.29075576]
[1741163806177,0.62428249,599.31,598.32,0.29075576]
[1741163806378,0.62428249,599.31,598.24,0.29075576]
[1741163806579,0.62428249,599.31,598.45,1.22505674]
[1741163806771,0.62428249,599.31,598.46,0.29075576]
[1741163808277,0.62428249,599.31,598.45,1.22505674]
[1741163808477,0.33372267,599.3,598.46,0.29074453]
[1741163808678,0.33372267,599.3,598.47,0.29074453]
[1741163808976,0.33372267,599.3,598.22,1.51562213]
[1741163808977,0.33372267,599.3,598.48,0.29074453]
[1741163809178,0.33372267,599.3,598.23,0.29074453]
[1741163809374,0.33372267,599.3,598.24,0.29074453]
[1741163809578,0.33372267,599.3,598.25,0.29074453]
[1741163809880,0.33372267,599.3,598.26,0.29080175]
[1741163810080,0.33372267,599.3,598.27,0.29080175]
[1741163810284,0.33372267,599.3,598.28,0.29080175]
[1741163810479,0.33372267,599.3,598.29,0.29080175]
[1741163810682,0.33372267,599.3,598.3,0.29080175]
[1741163810876,0.33372267,599.3,598.31,0.29080175]
[1741163811074,0.33372267,599.3,598.22,1.51562213]
[1741163811075,0.33372267,599.3,598.23,0.29080175]
[1741163811280,0.33372267,599.3,598.22,1.51562213]
[1741163811581,0.33372267,599.3,598.36,1.22505674]
[1741163811775,0.33372267,599.3,598.37,0.29078056]
[1741163813180,0.33372267,599.3,598.38,0.29078273]
[1741163813481,0.33372267,599.3,598.39,0.29078273]
[1741163813680,0.33372267,599.3,598.25,0.29078273]
[1741163813877,0.33372267,599.3,598.26,0.29078273]
[1741163814180,0.33372267,599.3,598.27,0.29078273]
[1741163814381,0.33372267,599.3,598.25,0.29078273]
[1741163814583,0.33372267,599.3,598.26,0.29078273]
[1741163814884,0.33372267,599.3,598.27,0.29078273]
[1741163815079,0.33372267,599.3,598.25,1.51583947]
[1741163815383,0.33372267,599.3,598.26,0.29078273]
[1741163815777,0.33372267,599.3,598.27,0.29078273]
[1741163815980,0.33372267,599.3,598.26,0.29078273]
[1741163816278,0.33372267,599.3,598.27,0.29078273]
[1741163816482,0.33372267,599.3,598.26,0.29078273]
[1741163816682,0.33372267,599.3,598.27,0.29078273]
[1741163816884,0.33372267,599.3,598.27,1.22505674]
[1741163817082,0.33372267,599.3,598.28,0.29078273]
[1741163818284,0.33372267,599.3,598.29,0.29083296]
[1741163818480,0.33372267,599.3,598.27,1.22505674]
[1741163818481,2.94514776,599.3,598.28,0.29083296]
[1741163818683,1.18697648,599.29,598.28,0.29083296]
[1741163819086,0.33373381,599.28,598.28,0.29083296]
[1741163819285,0.33373381,599.28,598.23,0.29083296]
[1741163819481,1.6657977,599.27,598.24,0.29083296]
[1741163819680,0.33373381,599.28,598.05,1.22505674]
[1741163819681,1.99954265,599.26,598.23,0.29083296]
[1741163819885,1.99954265,599.26,598.05,1.22505674]
[1741163819886,1.99954822,599.25,598.24,0.29083296]
[1741163820086,1.99955379,599.24,598.19,0.29083296]
[1741163820287,2.9454765,599.23,598.2,0.29083296]
[1741163820482,2.94548207,599.22,598.19,0.29083296]
[1741163820687,0.3337728,599.21,598.2,0.29083296]
[1741163820988,1.18697648,599.2,598.21,0.29083296]
[1741163821185,0.33378394,599.19,598.19,0.29083296]
[1741163821393,0.33378394,599.19,598.2,0.29083296]
[1741163821586,0.33378394,599.19,598.19,0.29083296]
[1741163821790,1.18937741,599.18,598.2,0.29083296]
[1741163822092,0.33379508,599.17,598.21,0.29083296]
[1741163822391,0.33379508,599.17,598.22,0.29083296]
[1741163822591,0.33379508,599.17,598.23,0.29083296]
[1741163822793,0.33379508,599.17,598.07,0.29083296]
[1741163823090,0.29067825,599.16,598.14,0.29067825]
[1741163823296,4.13981637,599.15,598.14,0.29067825]
[1741163823492,2.95026182,599.14,598.15,0.29087152]
[1741163823701,2.95026739,599.13,598.15,0.29087152]
[1741163824000,2.95026739,599.13,598.0,1.22505674]
[1741163824001,0.33381736,599.13,598.16,0.29087152]
[1741163824399,0.33381736,599.13,598.17,0.29087152]
[1741163824600,0.33381736,599.13,598.18,0.29087152]
[1741163824798,0.33381736,599.13,598.15,0.29087152]
[1741163824994,0.33381736,599.13,598.14,0.29067946]
[1741163825198,0.33381736,599.13,598.15,0.29083967]
[1741163825903,0.33381736,599.13,597.97,0.29083967]
[1741163826097,0.33381736,599.13,597.98,0.29083967]
[1741163826302,0.33381736,599.13,597.99,0.29083967]
[1741163826498,0.33381736,599.13,598.0,0.29083967]
[1741163826699,0.33381736,599.13,598.01,0.29083967]
[1741163826896,0.29064669,599.12,598.02,0.29083967]
[1741163827203,0.29064669,599.12,598.03,0.29083967]
[1741163827598,0.29064669,599.12,598.0,0.29064669]
[1741163827599,0.29064669,599.12,598.04,0.29083967]
[1741163827798,0.33381736,599.13,598.05,0.29083967]
[1741163828003,0.33381736,599.13,598.08,1.22505674]
[1741163828305,0.33381736,599.13,598.09,0.29083967]
[1741163828504,0.33381736,599.13,598.1,0.29083967]
[1741163828701,0.33381736,599.13,598.11,0.62522632]
[1741163828902,0.33381736,599.13,598.12,0.29083967]
[1741163829107,0.33381736,599.13,598.13,0.29083967]
[1741163829308,0.33381736,599.13,598.14,0.29083967]
[1741163829604,0.33381736,599.13,598.15,0.29083967]
[1741163829806,0.33381736,599.13,598.16,0.29083967]
[1741163830006,0.33381736,599.13,598.17,0.29083967]
[1741163830306,0.33381736,599.13,598.38,1.22505674]
[1741163830508,0.33381736,599.13,598.39,0.29083967]
[1741163830905,0.33381736,599.13,598.4,0.29083967]
[1741163831105,0.33381736,599.13,598.39,0.29083967]
[1741163831406,0.33381736,599.13,598.4,0.29083967]
[1741163831606,0.33381736,599.13,598.39,0.29083967]
[1741163831906,0.33381736,599.13,598.38,1.22505674]
[1741163832107,0.33381736,599.13,598.39,0.29073417]
[1741163832513,0.33381736,599.13,598.4,0.29073417]
[1741163832701,0.33381736,599.13,598.41,0.29073417]
[1741163832905,0.33381736,599.13,598.25,0.29073417]
[1741163833100,0.33381736,599.13,598.26,0.29073417]
[1741163833306,0.33381736,599.13,598.27,0.29073417]
[1741163833608,0.33381736,599.13,598.28,0.29073417]
[1741163833808,0.33381736,599.13,598.29,0.29073417]
[1741163834205,0.33381736,599.13,598.3,0.29070136]
[1741163834406,0.33381736,599.13,598.15,0.2905848]
[1741163834407,0.33381736,599.13,598.4,1.22505674]
[1741163834603,0.33381736,599.13,598.41,0.29070136]
[1741163834807,0.33381736,599.13,598.42,0.29070136]
[1741163835011,0.33381736,599.13,598.43,0.29070136]
[1741163835211,0.33381736,599.13,598.44,0.29070136]
[1741163835511,0.33381736,599.13,598.45,0.29070136]
[1741163835813,0.33381736,599.13,598.46,0.29070136]
[1741163836107,0.33381736,599.13,598.47,0.29070136]
[1741163836311,0.33381736,599.13,598.41,0.29070136]
[1741163836612,0.33381736,599.13,598.42,0.29070136]
[1741163836811,0.33381736,599.13,598.4,1.22505674]
[1741163836812,0.33381736,599.13,598.43,0.29070136]
[1741163837008,0.33381736,599.13,598.44,0.29070136]
[1741163837306,0.29051809,599.46,598.45,0.29070136]
[1741163837512,0.29051809,599.46,598.68,1.22505674]
[1741163837711,0.29051809,599.46,598.69,0.29070136]
[1741163839013,0.29051809,599.46,598.7,0.29064077]
[1741163839209,0.29051809,599.46,598.69,0.29064077]
[1741163839415,0.29051809,599.46,598.7,0.29064077]
[1741163839614,0.29051809,599.46,598.69,0.29064077]
[1741163840309,0.29051809,599.46,598.7,0.29064077]
[1741163840515,6.80309037,599.81,598.37,0.29064077]
[1741163840715,7.9943725,599.8,598.38,0.29064077]
[1741163840911,0.29046353,599.47,598.39,0.29064077]
[1741163841111,3.80785535,599.77,598.4,0.29064077]
[1741163841417,0.33347228,599.75,598.41,0.29064077]
[1741163841611,2.61657322,599.74,598.37,0.29064077]
[1741163841824,2.61657322,599.74,598.36,1.22505674]
[1741163841825,0.33348896,599.72,598.38,0.29064077]
[1741163842012,2.95006218,599.72,598.39,0.29064077]
[1741163842317,0.33349452,599.71,598.4,0.29064413]
[1741163842512,1.52477665,599.71,598.34,0.29064413]
[1741163842717,2.46522918,599.7,598.35,0.29064413]
[1741163842912,8.32728476,599.69,598.36,0.29064413]
[1741163843118,7.13600819,599.68,598.37,0.29064413]
[1741163843312,7.13601375,599.67,598.34,0.29064413]
[1741163843517,8.32730144,599.66,598.35,0.29064413]
[1741163843719,7.13602488,599.65,598.34,0.29064413]
[1741163843913,7.13603044,599.64,598.36,0.29064413]
[1741163844118,8.32731813,599.63,598.37,0.29064413]
[1741163844421,2.95011779,599.62,598.38,0.62487989]
[1741163844614,2.61657322,599.61,598.39,0.62487431]
[1741163844810,1.19128213,599.61,598.4,0.29064413]
[1741163845014,1.19128213,599.61,598.41,0.29064413]
[1741163845220,1.19128213,599.61,598.42,0.29064413]
[1741163845417,1.19128213,599.6,598.43,0.29064413]
[1741163845817,1.19128213,599.6,598.44,0.29064413]
[1741163846023,0.33354457,599.62,598.45,0.29064413]
[1741163846218,0.33354457,599.62,598.45,0.6248408]
[1741163846415,0.33354457,599.62,598.46,0.29064413]
[1741163846615,0.33354457,599.62,598.47,0.29064413]
[1741163846817,0.33354457,599.62,598.48,0.29064413]
[1741163847013,0.33354457,599.62,598.49,0.29064413]
[1741163847214,0.33354457,599.62,598.5,0.62481288]
[1741163847417,0.33354457,599.62,598.57,1.22505674]
[1741163847619,0.33354457,599.62,598.58,0.29064413]
[1741163847916,0.33354457,599.62,598.59,0.29064413]
[1741163848120,0.33354457,599.62,598.57,1.22505674]
[1741163848121,0.33354457,599.62,598.6,0.29064413]
[1741163848317,0.33354457,599.62,598.57,1.22505674]
[1741163848318,0.33354457,599.62,598.61,0.29064413]
[1741163848518,0.33354457,599.62,598.62,0.29064413]
[1741163848715,0.33354457,599.62,598.63,0.29064413]
[1741163848918,0.33354457,599.62,598.64,0.29064413]
[1741163849119,0.33354457,599.62,598.57,1.22505674]
[1741163849321,0.33354457,599.62,598.58,0.29049531]
[1741163849615,0.33354457,599.62,598.59,0.29049531]
[1741163849822,0.33354457,599.62,598.6,0.29049531]
[1741163850022,0.33354457,599.62,598.61,0.29049531]
[1741163850320,0.33354457,599.62,598.62,0.29049531]
[1741163850516,0.33354457,599.62,598.59,1.22505674]
[1741163850517,0.33354457,599.62,598.63,0.29049531]
[1741163850712,0.33354457,599.62,598.59,1.22505674]
[1741163850713,0.33354457,599.62,598.64,0.29049531]
[1741163850921,0.33354457,599.62,598.65,0.29049531]
[1741163851115,0.33354457,599.62,598.66,0.29049531]
[1741163851321,0.33354457,599.62,598.67,0.29049531]
[1741163851622,0.33354457,599.62,598.68,0.29049531]
[1741163851816,0.33354457,599.62,598.69,0.29049531]
[1741163852014,0.33354457,599.62,598.7,0.29049531]
[1741163852221,0.33354457,599.62,598.71,0.29049531]
[1741163852421,0.33354457,599.62,598.72,0.29049531]
[1741163852621,0.33354457,599.62,598.73,0.29049531]
[1741163852921,0.33354457,599.62,598.74,0.29049531]
[1741163853121,0.33354457,599.62,598.75,0.29049531]
[1741163853321,0.33354457,599.62,598.52,0.29049531]
[1741163853521,0.33354457,599.62,598.53,0.29049531]
[1741163853723,0.33354457,599.62,598.54,0.29049531]
[1741163853921,0.33354457,599.62,598.55,0.29049531]
[1741163854122,0.33354457,599.62,598.56,0.29049531]
[1741163854317,0.33354457,599.62,598.57,0.29049531]
[1741163854521,0.33354457,599.62,598.58,0.29049531]
[1741163854721,0.33354457,599.62,598.59,0.29049531]
[1741163854920,0.33354457,599.62,598.6,0.29049531]
[1741163855120,0.33354457,599.62,598.61,0.29049531]
[1741163855316,0.33354457,599.62,598.62,0.29049531]
[1741163855522,0.33354457,599.62,598.63,0.29049531]
[1741163855717,0.33354457,599.62,598.52,0.29049531]
[1741163856023,0.33354457,599.62,598.53,0.29058927]
[1741163856222,0.33354457,599.62,598.52,0.29058927]
[1741163860528,0.33354457,599.62,598.53,0.29058927]
[1741163860729,0.33354457,599.62,598.54,0.29058927]
[1741163860925,0.33354457,599.62,598.55,0.29058927]
[1741163861128,0.33354457,599.62,598.56,0.29058927]
[1741163861437,0.33354457,599.62,598.57,0.29058927]
[1741163861623,0.33354457,599.62,598.58,0.29058927]
[1741163861827,0.33354457,599.62,598.59,0.29058927]
[1741163862026,0.33354457,599.62,598.52,0.29058927]
[1741163862227,0.33354457,599.62,598.53,0.29058927]
[1741163862528,0.33354457,599.62,598.54,0.29058927]
[1741163862728,0.33354457,599.62,598.55,0.29058927]
[1741163862926,0.33354457,599.62,598.56,0.29058927]
[1741163863126,0.33354457,599.62,598.54,0.29058927]
[1741163863323,0.33354457,599.62,598.55,0.29058927]
[1741163863628,0.33354457,599.62,598.56,0.29058927]
[1741163863828,0.33354457,599.62,598.57,0.29058927]
[1741163864124,0.33354457,599.62,598.53,0.334152]
[1741163864125,0.33354457,599.62,598.58,0.29058927]
[1741163864330,0.33354457,599.62,598.54,0.29058927]
[1741163864630,0.33354457,599.62,598.55,0.29053998]
[1741163864822,0.33354457,599.62,598.54,0.29053998]
[1741163865325,0.33354457,599.62,598.55,0.29053998]
[1741163865624,0.33354457,599.62,598.56,0.29053998]
[1741163865830,0.33354457,599.62,598.54,0.29053998]
[1741163868030,0.2904405,599.61,598.54,0.29053998]
[1741163868232,0.3335557,599.6,598.54,0.29053998]
[1741163872733,0.3335557,599.6,598.54,1.51559672]
[1741163872934,0.3335557,599.6,598.55,0.29053998]
[1741163874435,0.3335557,599.6,598.56,1.22505674]
[1741163874736,0.3335557,599.6,598.57,0.29053998]
[1741163874935,0.3335557,599.6,598.56,1.22505674]
[1741163875234,0.3335557,599.6,598.57,0.29060822]
[1741163875434,0.3335557,599.6,598.58,0.29060822]
[1741163875637,0.3335557,599.6,598.59,0.29060822]
[1741163875833,0.3335557,599.6,598.6,0.29060822]
[1741163876034,0.3335557,599.6,598.61,0.29060822]
[1741163876233,0.3335557,599.6,598.84,1.22505674]
[1741163876432,0.3335557,599.6,598.85,0.29060822]
[1741163878135,0.29040415,599.59,598.86,0.29060822]
[1741163878335,0.33356683,599.58,598.86,0.29060822]
[1741163878536,0.33356683,599.58,598.87,0.29060822]
[1741163878733,0.33356683,599.58,598.55,0.29060822]
[1741163878934,0.33356683,599.58,598.56,0.29060822]
[1741163879129,0.33356683,599.58,598.57,0.29060822]
[1741163879335,0.33356683,599.58,598.58,0.29060822]
[1741163879532,0.33356683,599.58,598.59,0.29060822]
[1741163879735,0.33356683,599.58,598.6,0.29060822]
[1741163879936,0.33356683,599.58,598.52,1.22505674]
[1741163879937,0.29046111,599.57,598.61,0.29060822]
[1741163880134,0.6240335,599.57,598.62,0.29060822]
[1741163880335,0.6240335,599.57,598.63,0.29060822]
[1741163880536,0.6240335,599.57,598.64,0.29060822]
[1741163880739,0.6240335,599.57,598.65,0.29060822]
[1741163881038,0.6240335,599.57,598.66,0.29060822]
[1741163881338,0.6240335,599.57,598.67,0.29060822]
[1741163881639,0.6240335,599.57,598.68,1.51566496]
[1741163881839,0.6240335,599.57,598.69,0.29060822]
[1741163882239,0.6240335,599.57,598.7,0.29060822]
[1741163882539,0.6240335,599.57,598.71,0.29060822]
[1741163882742,0.33357239,599.57,598.72,0.29060822]
[1741163882940,0.33357239,599.57,598.73,0.29060822]
[1741163883143,0.29043808,599.56,598.69,0.29060822]
[1741163883342,0.29043808,599.56,598.7,0.29060822]
[1741163883542,0.29043808,599.56,598.71,0.29060822]
[1741163884041,0.29043808,599.56,598.72,0.29060822]
[1741163884239,0.29043808,599.56,598.73,0.29060822]
[1741163884439,0.33358352,599.55,598.7,0.29060822]
[1741163884638,0.33358352,599.55,598.71,0.29060822]
[1741163884841,0.33358352,599.55,598.7,0.29060822]
[1741163885040,0.33358352,599.55,598.69,1.22505674]
[1741163885041,0.33358352,599.55,598.71,0.29060822]
[1741163885342,0.33358352,599.55,598.7,0.29060822]
[1741163885543,0.33358352,599.55,598.71,0.29060822]
[1741163885838,0.33358352,599.55,598.72,0.29060822]
[1741163886042,0.33358352,599.55,598.73,0.29060822]
[1741163886237,0.33358352,599.55,598.74,0.29060822]
[1741163886443,0.33358352,599.55,598.7,0.29060822]
[1741163886644,0.33358352,599.55,598.71,0.29060822]
[1741163886938,1.19012684,599.54,598.72,0.29060822]
[1741163887143,0.33359464,599.53,598.73,0.29060822]
[1741163887342,0.33359464,599.53,598.61,0.29060822]
[1741163887539,0.33359464,599.53,598.62,0.29060822]
[1741163887742,0.33359464,599.53,598.61,0.29060822]
[1741163888045,0.33359464,599.53,598.6,0.29043808]
[1741163888046,0.33359464,599.53,598.62,0.29060822]
[1741163888443,0.33359464,599.53,598.63,0.29060822]
[1741163888639,0.33359464,599.53,598.61,0.29060822]
[1741163888843,0.33359464,599.53,598.54,0.29060822]
[1741163889043,0.33359464,599.53,598.6,0.29045747]
[1741163889245,0.33359464,599.53,598.61,0.29060822]
[1741163889745,0.33359464,599.53,598.6,0.29045747]
[1741163890048,0.33359464,599.53,598.61,0.29057231]